[Event "Biel Main Tournament 2019"]
[Site "Biel"]
[Date "2019.07.26"]
[Round "5.2"]
[White "Meyer, Prosper"]
[Black "Sudan, Georges"]
[Result "1-0"]
[ECO "D01"]
[WhiteElo "1916"]
[BlackElo "1978"]
[Annotator "NA"]
[PlyCount "51"]
[EventDate "2019.07.20"]
[EventType "swiss"]
[EventCountry "SUI"]
[SourceTitle "playchess.com"]
[Source "ChessBase"]
[SourceQuality "1"]
[TimeControl "40/5400+30:1800+30"]

1. d4 {[%emt 0:00:26]} Nf6 {[%emt 0:00:23]} 2. Nc3 {[%emt 0:00:05]} d5 {[%emt 0:05:09]} 3. Bg5 {[%emt 0:00:12]} Bf5 {[%emt 0:08:19]} 4. f3 {[%emt 0:00:10]} h6 {[%emt 0:09:11]} 5. Bh4 {[%emt 0:00:43]} Nbd7 {[%emt 0:10:25]} 6. Nxd5 {[%emt 0:00:35]} Nxd5 {[%emt 0:03:24]} 7. e4 {[%emt 0:00:11]} g5 {[%emt 0:21:05]} 8. Bf2 {[%emt 0:00:12]} Bg7 {[%emt 0:09:59]} 9. exf5 {[%emt 0:01:17]} c6 {[%emt 0:07:11]} 10. Qd2 {[%emt 0:04:47]} b5 {[%emt 0:01:32]} 11. Ne2 {[%emt 0:04:04]} Qb6 {[%emt 0:00:16]} 12. Nc3 {[%emt 0:01:58]} N7f6 {[%emt 0:00:16]} 13. Ne4 {[%emt 0:00:48]} Rd8 {[%emt 0:04:01]} 14. O-O-O {[%emt 0:01:18]} a5 {[%emt 0:00:52]} 15. h4 {[%emt 0:06:20]} g4 {[%emt 0:00:15]} 16. Nxf6+ {[%emt 0:03:27]} Nxf6 {[%emt 0:00:20]} 17. d5 {[%emt 0:00:18]} Qc7 {[%emt 0:00:46]} 18. Qc3 {[%emt 0:03:22]} O-O {[%emt 0:05:05]} 19. Bxb5 {[%emt 0:03:52]} Nxd5 {[%emt 0:02:00]} 20. Qxc6 {[%emt 0:00:30]} Qf4+ {[%emt 0:00:06]} 21. Kb1 {[%emt 0:01:02]} Nb4 {[%emt 0:00:43]} 22. Qe4 {[%emt 0:01:57]} Qb8 {[%emt 0:00:45]} 23. a4 {[%emt 0:01:24]} g3 {[%emt 0:00:15]} 24. Bd4 {[%emt 0:01:06]} Qc7 {[%emt 0:00:24]} 25. Bxg7 {[%emt 0:02:33]} Kxg7 {[%emt 0:00:31]} 26. c3 {[%emt 0:00:30]} 1-0

[Event "Biel Main Tournament 2019"]
[Site "Biel"]
[Date "2019.07.26"]
[Round "5.3"]
[White "Pao, Lucas Ping"]
[Black "Kalbermatter, Philipp"]
[Result "1/2-1/2"]
[ECO "A00"]
[WhiteElo "1969"]
[BlackElo "1869"]
[Annotator "NA"]
[PlyCount "113"]
[EventDate "2019.07.20"]
[EventType "swiss"]
[EventCountry "SUI"]
[SourceTitle "playchess.com"]
[Source "ChessBase"]
[SourceQuality "1"]
[TimeControl "40/5400+30:1800+30"]

1. e4 {[%emt 0:00:40]} d5 {[%emt 0:00:07]} 2. Nc3 {[%emt 0:01:36]} dxe4 {[%emt 0:02:56]} 3. Nxe4 {[%emt 0:00:14]} Qd5 {[%emt 0:01:05]} 4. Ng3 {[%emt 0:00:56]} Nf6 {[%emt 0:01:51]} 5. d4 {[%emt 0:05:27]} Nc6 {[%emt 0:03:11]} 6. Nf3 {[%emt 0:01:33]} Bg4 {[%emt 0:12:19]} 7. Be2 {[%emt 0:01:13]} O-O-O {[%emt 0:15:37]} 8. c3 {[%emt 0:06:40]} e5 {[%emt 0:03:17]} 9. dxe5 {[%emt 0:06:56]} Qxd1+ {[%emt 0:01:34]} 10. Bxd1 {[%emt 0:00:09]} Bxf3 {[%emt 0:00:15]} 11. Bxf3 {[%emt 0:00:19]} Nxe5 {[%emt 0:00:13]} 12. Be2 {[%emt 0:00:40]} Nd3+ {[%emt 0:00:56]} 13. Bxd3 {[%emt 0:03:17]} Rxd3 {[%emt 0:00:04]} 14. Be3 {[%emt 0:03:06]} Rd7 {[%emt 0:03:10]} 15. Bd4 {[%emt 0:16:21]} Bd6 {[%emt 0:03:51]} 16. O-O-O {[%emt 0:01:57]} Bxg3 {[%emt 0:07:38]} 17. hxg3 {[%emt 0:02:02]} Rd6 {[%emt 0:01:50]} 18. Rde1 {[%emt 0:05:18]} Kd7 {[%emt 0:06:50]} 19. Re2 {[%emt 0:04:27]} Re8 {[%emt 0:03:00]} 20. Rd2 {[%emt 0:07:02]} Ree6 {[%emt 0:02:56]} 21. f3 {[%emt 0:16:41]} h6 {[%emt 0:01:11]} 22. Rhd1 {[%emt 0:01:12]} b6 {[%emt 0:01:06]} 23. b4 {[%emt 0:01:48]} Kc8 {[%emt 0:11:20]} 24. Kb2 {[%emt 0:02:22]} Kb7 {[%emt 0:01:06]} 25. Kb3 {[%emt 0:00:37]} a6 {[%emt 0:02:29]} 26. c4 {[%emt 0:02:28]} Kc8 {[%emt 0:02:34]} 27. a3 {[%emt 0:01:46]} Kb7 {[%emt 0:00:23]} 28. a4 {[%emt 0:02:32]} Rd7 {[%emt 0:01:15]} 29. c5 {[%emt 0:00:30]} bxc5 {[%emt 0:01:10]} 30. Bxc5 {[%emt 0:00:03]} Rxd2 {[%emt 0:00:38]} 31. Rxd2 {[%emt 0:00:02]} Kc6 {[%emt 0:00:57]} 32. Bf8 {[%emt 0:00:30]} Ne8 {[%emt 0:04:07]} 33. Kc4 {[%emt 0:01:15]} Nd6+ {[%emt 0:00:39]} 34. Bxd6 {[%emt 0:01:56]} cxd6 {[%emt 0:00:47]} 35. b5+ {[%emt 0:01:51]} axb5+ {[%emt 0:00:11]} 36. axb5+ {[%emt 0:00:02]} Kb6 {[%emt 0:01:05]} 37. Ra2 {[%emt 0:01:22]} h5 {[%emt 0:01:01]} 38. Ra6+ {[%emt 0:00:44]} Kb7 {[%emt 0:00:10]} 39. Rc6 {[%emt 0:00:29]} Rg6 {[%emt 0:00:41]} 40. Kd5 {[%emt 0:00:00]} Rxg3 {[%emt 0:00:00]} 41. Rxd6 {[%emt 0:14:05]} Rxg2 {[%emt 0:09:29]} 42. Rd7+ {[%emt 0:00:29]} Kb6 {[%emt 0:00:09]} 43. Rxf7 {[%emt 0:00:29]} h4 {[%emt 0:00:25]} 44. Rf8 {[%emt 0:02:05]} Rg5+ {[%emt 0:01:05]} 45. Ke4 {[%emt 0:00:23]} Rh5 {[%emt 0:00:14]} 46. Rb8+ {[%emt 0:00:52]} Kc7 {[%emt 0:04:11]} 47. Ra8 {[%emt 0:00:12]} h3 {[%emt 0:01:01]} 48. Ra1 {[%emt 0:00:06]} Rxb5 {[%emt 0:00:33]} 49. Ra7+ {[%emt 0:01:11]} Rb7 {[%emt 0:02:03]} 50. Ra2 {[%emt 0:00:20]} Rb4+ {[%emt 0:00:20]} 51. Kf5 {[%emt 0:00:13]} Rh4 {[%emt 0:00:53]} 52. Rh2 {[%emt 0:00:09]} Kd6 {[%emt 0:00:25]} 53. Kg5 {[%emt 0:00:37]} Rh6 {[%emt 0:01:11]} 54. Kg4 {[%emt 0:00:09]} Ke5 {[%emt 0:00:25]} 55. Kg3 {[%emt 0:01:32]} Kf5 {[%emt 0:01:07]} 56. Rxh3 {[%emt 0:00:24]} Rxh3+ {[%emt 0:00:12]} 57. Kxh3 {[%emt 0:00:05]} 1/2-1/2

[Event "Biel Main Tournament 2019"]
[Site "Biel"]
[Date "2019.07.26"]
[Round "5.4"]
[White "Valencak, Stanislav"]
[Black "Cordes, Lothar"]
[Result "1-0"]
[ECO "C00"]
[WhiteElo "1942"]
[BlackElo "1852"]
[Annotator "NA"]
[PlyCount "115"]
[EventDate "2019.07.20"]
[EventType "swiss"]
[EventCountry "SUI"]
[SourceTitle "playchess.com"]
[Source "ChessBase"]
[SourceQuality "1"]
[TimeControl "40/5400+30:1800+30"]

1. e4 {[%emt 0:00:00]} c5 {[%emt 0:00:00]} 2. f4 {[%emt 0:00:00]} e6 {[%emt 0:00:10]} 3. Nf3 {[%emt 0:00:41]} Nc6 {[%emt 0:00:28]} 4. c3 {[%emt 0:00:25]} d5 {[%emt 0:00:39]} 5. e5 {[%emt 0:00:07]} Bd7 {[%emt 0:05:16]} 6. Be2 {[%emt 0:00:16]} Qb6 {[%emt 0:02:00]} 7. d3 {[%emt 0:00:43]} Nh6 {[%emt 0:01:27]} 8. O-O {[%emt 0:00:41]} Be7 {[%emt 0:01:00]} 9. Qc2 {[%emt 0:00:30]} Nf5 {[%emt 0:03:11]} 10. g4 {[%emt 0:01:45]} Nh6 {[%emt 0:01:01]} 11. h3 {[%emt 0:00:57]} O-O-O {[%emt 0:01:48]} 12. Be3 {[%emt 0:00:27]} Kb8 {[%emt 0:03:16]} 13. Bf2 {[%emt 0:06:30]} Qc7 {[%emt 0:01:26]} 14. Nbd2 {[%emt 0:00:55]} f6 {[%emt 0:06:25]} 15. d4 {[%emt 0:01:09]} cxd4 {[%emt 0:01:40]} 16. cxd4 {[%emt 0:00:20]} Nf7 {[%emt 0:02:21]} 17. Rac1 {[%emt 0:00:42]} Rc8 {[%emt 0:01:38]} 18. a3 {[%emt 0:02:22]} Qd8 {[%emt 0:01:02]} 19. Qb1 {[%emt 0:02:19]} g5 {[%emt 0:03:40]} 20. Bg3 {[%emt 0:01:16]} gxf4 {[%emt 0:05:34]} 21. Bxf4 {[%emt 0:00:26]} fxe5 {[%emt 0:00:16]} 22. dxe5 {[%emt 0:01:02]} Ng5 {[%emt 0:02:26]} 23. Kg2 {[%emt 0:01:21]} h5 {[%emt 0:02:13]} 24. gxh5 {[%emt 0:02:41]} Rxh5 {[%emt 0:16:04]} 25. Nxg5 {[%emt 0:00:23]} Rxg5+ {[%emt 0:00:09]} 26. Bxg5 {[%emt 0:00:15]} Bxg5 {[%emt 0:00:06]} 27. Qd3 {[%emt 0:04:00]} Nxe5 {[%emt 0:01:17]} 28. Rxc8+ {[%emt 0:00:44]} Kxc8 {[%emt 0:05:04]} 29. Qg3 {[%emt 0:01:44]} Bxd2 {[%emt 0:03:38]} 30. Qxe5 {[%emt 0:00:13]} Ba5 {[%emt 0:00:07]} 31. Qg7 {[%emt 0:00:28]} Qh4 {[%emt 0:04:19]} 32. Rf8+ {[%emt 0:02:28]} Bd8 {[%emt 0:00:12]} 33. Qh8 {[%emt 0:03:13]} Qg5+ {[%emt 0:01:03]} 34. Bg4 {[%emt 0:00:16]} Qd2+ {[%emt 0:04:56]} 35. Rf2 {[%emt 0:00:47]} Qe3 {[%emt 0:00:27]} 36. Re2 {[%emt 0:00:22]} Qg5 {[%emt 0:06:13]} 37. Kg3 {[%emt 0:00:30]} e5 {[%emt 0:00:30]} 38. Rxe5 {[%emt 0:01:10]} Qxe5+ {[%emt 0:00:23]} 39. Qxe5 {[%emt 0:00:33]} Bc7 {[%emt 0:00:04]} 40. Kf4 {[%emt 0:00:27]} d4 {[%emt 0:02:41]} 41. Qxc7+ {[%emt 0:00:34]} Kxc7 {[%emt 0:00:07]} 42. Ke4 {[%emt 0:00:16]} Bc6+ {[%emt 0:01:30]} 43. Kxd4 {[%emt 0:00:24]} Kd6 {[%emt 0:00:12]} 44. Bf5 {[%emt 0:00:33]} b6 {[%emt 0:04:05]} 45. h4 {[%emt 0:00:11]} Bf3 {[%emt 0:02:08]} 46. Ke3 {[%emt 0:00:31]} Bh5 {[%emt 0:00:30]} 47. Kf4 {[%emt 0:00:16]} Kd5 {[%emt 0:02:04]} 48. Kg5 {[%emt 0:00:12]} Bf7 {[%emt 0:00:43]} 49. Bg6 {[%emt 0:00:59]} Bg8 {[%emt 0:00:51]} 50. Kf6 {[%emt 0:00:38]} Kc4 {[%emt 0:01:47]} 51. Bf7+ {[%emt 0:00:14]} Bxf7 {[%emt 0:00:06]} 52. Kxf7 {[%emt 0:00:04]} Kb3 {[%emt 0:00:10]} 53. h5 {[%emt 0:00:07]} Kxb2 {[%emt 0:00:09]} 54. h6 {[%emt 0:00:07]} Kxa3 {[%emt 0:00:21]} 55. h7 {[%emt 0:00:06]} b5 {[%emt 0:01:08]} 56. h8=Q {[%emt 0:01:12]} a5 {[%emt 0:00:31]} 57. Ke6 {[%emt 0:00:30]} a4 {[%emt 0:00:34]} 58. Kd5 {[%emt 0:00:45]} 1-0

[Event "Biel Main Tournament 2019"]
[Site "Biel"]
[Date "2019.07.26"]
[Round "5.5"]
[White "Prieb, Robert"]
[Black "Jud, Marc"]
[Result "1-0"]
[ECO "D91"]
[WhiteElo "1824"]
[BlackElo "1940"]
[Annotator "NA"]
[PlyCount "97"]
[EventDate "2019.07.20"]
[EventType "swiss"]
[EventCountry "SUI"]
[SourceTitle "playchess.com"]
[Source "ChessBase"]
[SourceQuality "1"]
[TimeControl "40/5400+30:1800+30"]

1. d4 {[%emt 0:00:00]} Nf6 {[%emt 0:00:00]} 2. c4 {[%emt 0:00:00]} g6 {[%emt 0:00:38]} 3. Nc3 {[%emt 0:00:25]} d5 {[%emt 0:00:19]} 4. Nf3 {[%emt 0:00:31]} Bg7 {[%emt 0:00:13]} 5. Bg5 {[%emt 0:00:27]} Ne4 {[%emt 0:06:46]} 6. Bh4 {[%emt 0:00:24]} Nxc3 {[%emt 0:00:37]} 7. bxc3 {[%emt 0:00:15]} c5 {[%emt 0:01:55]} 8. cxd5 {[%emt 0:00:52]} Qxd5 {[%emt 0:00:12]} 9. e3 {[%emt 0:00:35]} cxd4 {[%emt 0:03:16]} 10. cxd4 {[%emt 0:00:33]} Qa5+ {[%emt 0:10:05]} 11. Qd2 {[%emt 0:00:56]} Qxd2+ {[%emt 0:00:07]} 12. Kxd2 {[%emt 0:00:31]} Nc6 {[%emt 0:00:20]} 13. Bb5 {[%emt 0:02:52]} Bd7 {[%emt 0:00:24]} 14. Rab1 {[%emt 0:04:39]} Rd8 {[%emt 0:23:05]} 15. Rhc1 {[%emt 0:07:37]} f6 {[%emt 0:05:29]} 16. Ke2 {[%emt 0:04:33]} e6 {[%emt 0:06:57]} 17. Bg3 {[%emt 0:05:54]} O-O {[%emt 0:03:38]} 18. Bc4 {[%emt 0:03:43]} Na5 {[%emt 0:01:04]} 19. Bc7 {[%emt 0:01:26]} Nxc4 {[%emt 0:05:56]} 20. Bxd8 {[%emt 0:00:47]} b5 {[%emt 0:00:32]} 21. Be7 {[%emt 0:00:56]} Re8 {[%emt 0:00:15]} 22. Bc5 {[%emt 0:00:47]} a6 {[%emt 0:00:11]} 23. a4 {[%emt 0:05:38]} Bf8 {[%emt 0:00:28]} 24. Bxf8 {[%emt 0:05:59]} Kxf8 {[%emt 0:00:24]} 25. axb5 {[%emt 0:01:09]} Bxb5 {[%emt 0:01:49]} 26. Ke1 {[%emt 0:01:19]} Re7 {[%emt 0:01:56]} 27. Rb4 {[%emt 0:02:40]} Nd6 {[%emt 0:01:33]} 28. Nd2 {[%emt 0:02:00]} f5 {[%emt 0:05:02]} 29. Rc5 {[%emt 0:04:02]} Nb7 {[%emt 0:07:24]} 30. Rc8+ {[%emt 0:01:28]} Kg7 {[%emt 0:00:33]} 31. Nc4 {[%emt 0:02:23]} Kf6 {[%emt 0:05:02]} 32. Rb2 {[%emt 0:01:50]} Kg7 {[%emt 0:00:48]} 33. Kd2 {[%emt 0:01:00]} Kf6 {[%emt 0:01:23]} 34. g3 {[%emt 0:01:36]} Kg7 {[%emt 0:00:30]} 35. Kc3 {[%emt 0:00:50]} Kf6 {[%emt 0:01:31]} 36. Rb8 {[%emt 0:01:40]} Rc7 {[%emt 0:01:43]} 37. Kd2 {[%emt 0:07:16]} Kg7 {[%emt 0:03:18]} 38. f3 {[%emt 0:10:57]} Kf6 {[%emt 0:00:46]} 39. Na3 {[%emt 0:03:23]} Nd6 {[%emt 0:02:04]} 40. Rb6 {[%emt 0:00:00]} Nc4+ {[%emt 0:00:00]} 41. Nxc4 {[%emt 0:04:26]} Rxc4 {[%emt 0:01:55]} 42. d5 {[%emt 0:01:38]} Rc5 {[%emt 0:00:46]} 43. Rxe6+ {[%emt 0:02:16]} Kf7 {[%emt 0:00:07]} 44. e4 {[%emt 0:00:22]} Rc4 {[%emt 0:01:36]} 45. Rc2 {[%emt 0:03:26]} Rd4+ {[%emt 0:01:11]} 46. Ke3 {[%emt 0:00:10]} Rd3+ {[%emt 0:00:34]} 47. Kf4 {[%emt 0:00:56]} fxe4 {[%emt 0:03:42]} 48. fxe4 {[%emt 0:00:34]} Kg7 {[%emt 0:04:52]} 49. Rc7+ {[%emt 0:01:02]} 1-0

[Event "Biel Main Tournament 2019"]
[Site "Biel"]
[Date "2019.07.26"]
[Round "5.6"]
[White "Wenger, Arejou"]
[Black "Esper, Christian"]
[Result "0-1"]
[ECO "C10"]
[WhiteElo "1730"]
[BlackElo "1979"]
[Annotator "NA"]
[PlyCount "46"]
[EventDate "2019.07.20"]
[EventType "swiss"]
[EventCountry "SUI"]
[SourceTitle "playchess.com"]
[Source "ChessBase"]
[SourceQuality "1"]
[TimeControl "40/5400+30:1800+30"]

1. e4 {[%emt 0:00:00]} e6 {[%emt 0:00:05]} 2. d4 {[%emt 0:00:00]} d5 {[%emt 0:00:14]} 3. Nd2 {[%emt 0:00:00]} dxe4 {[%emt 0:02:00]} 4. Nxe4 {[%emt 0:00:00]} Nd7 {[%emt 0:00:15]} 5. Nf3 {[%emt 0:01:39]} Be7 {[%emt 0:04:26]} 6. Bd3 {[%emt 0:03:19]} Ngf6 {[%emt 0:01:41]} 7. Nxf6+ {[%emt 0:00:33]} Nxf6 {[%emt 0:01:35]} 8. O-O {[%emt 0:01:16]} O-O {[%emt 0:03:06]} 9. Re1 {[%emt 0:07:51]} b6 {[%emt 0:02:55]} 10. c3 {[%emt 0:03:58]} Bb7 {[%emt 0:01:14]} 11. Qe2 {[%emt 0:04:21]} c5 {[%emt 0:10:19]} 12. Bf4 {[%emt 0:03:36]} Bxf3 {[%emt 0:03:33]} 13. Qxf3 {[%emt 0:01:01]} cxd4 {[%emt 0:00:38]} 14. Rad1 {[%emt 0:01:17]} Qd5 {[%emt 0:00:39]} 15. cxd4 {[%emt 0:17:05]} Qxf3 {[%emt 0:02:08]} 16. gxf3 {[%emt 0:00:06]} Nd5 {[%emt 0:02:17]} 17. Bg3 {[%emt 0:00:55]} Bf6 {[%emt 0:02:49]} 18. Bc4 {[%emt 0:02:53]} Rfd8 {[%emt 0:01:43]} 19. Rd2 {[%emt 0:02:40]} Ne7 {[%emt 0:21:35]} 20. b3 {[%emt 0:06:11]} Rxd4 {[%emt 0:03:15]} 21. Rxd4 {[%emt 0:02:30]} Bxd4 {[%emt 0:00:08]} 22. Rd1 {[%emt 0:02:37]} Rd8 {[%emt 0:01:12]} 23. Bc7 {[%emt 0:02:43]} Bxf2+ {[%emt 0:00:13]} 0-1

[Event "Biel Main Tournament 2019"]
[Site "Biel"]
[Date "2019.07.26"]
[Round "5.7"]
[White "Deubelbeiss, Rene"]
[Black "Stoecklin, Carlo"]
[Result "1-0"]
[ECO "A36"]
[WhiteElo "1972"]
[BlackElo "1870"]
[Annotator "NA"]
[PlyCount "105"]
[EventDate "2019.07.20"]
[EventType "swiss"]
[EventCountry "SUI"]
[SourceTitle "playchess.com"]
[Source "ChessBase"]
[SourceQuality "1"]
[TimeControl "40/5400+30:1800+30"]

1. c4 {[%emt 0:00:00]} g6 {[%emt 0:00:00]} 2. g3 {[%emt 0:00:00]} Bg7 {[%emt 0:00:00]} 3. Bg2 {[%emt 0:00:00]} Nf6 {[%emt 0:00:12]} 4. Nc3 {[%emt 0:00:12]} O-O {[%emt 0:00:11]} 5. e4 {[%emt 0:00:23]} d6 {[%emt 0:00:43]} 6. Nge2 {[%emt 0:00:18]} c5 {[%emt 0:01:14]} 7. O-O {[%emt 0:00:25]} Nc6 {[%emt 0:01:16]} 8. d3 {[%emt 0:00:31]} Ne8 {[%emt 0:01:14]} 9. Be3 {[%emt 0:00:58]} Nd4 {[%emt 0:00:41]} 10. Qd2 {[%emt 0:00:33]} Bh3 {[%emt 0:04:57]} 11. f4 {[%emt 0:03:17]} Bxg2 {[%emt 0:00:16]} 12. Kxg2 {[%emt 0:01:01]} e6 {[%emt 0:01:16]} 13. f5 {[%emt 0:18:41]} exf5 {[%emt 0:01:21]} 14. Bg5 {[%emt 0:01:15]} f6 {[%emt 0:00:55]} 15. Bh6 {[%emt 0:00:21]} Nxe2 {[%emt 0:02:18]} 16. Nxe2 {[%emt 0:02:06]} fxe4 {[%emt 0:00:37]} 17. dxe4 {[%emt 0:02:34]} Qe7 {[%emt 0:00:41]} 18. Nc3 {[%emt 0:05:39]} Nc7 {[%emt 0:00:25]} 19. Bxg7 {[%emt 0:07:06]} Kxg7 {[%emt 0:00:19]} 20. Rae1 {[%emt 0:01:39]} Rfe8 {[%emt 0:05:51]} 21. Qf4 {[%emt 0:13:30]} a6 {[%emt 0:02:51]} 22. Nd5 {[%emt 0:04:37]} Ne6 {[%emt 0:01:00]} 23. Qxf6+ {[%emt 0:01:33]} Qxf6 {[%emt 0:00:36]} 24. Rxf6 {[%emt 0:00:30]} Ng5 {[%emt 0:02:28]} 25. Rxd6 {[%emt 0:05:38]} Nxe4 {[%emt 0:03:20]} 26. Rd7+ {[%emt 0:00:12]} Kh6 {[%emt 0:01:06]} 27. Rxb7 {[%emt 0:08:50]} Nd2 {[%emt 0:00:37]} 28. Rxe8 {[%emt 0:01:21]} Rxe8 {[%emt 0:00:12]} 29. Rxh7+ {[%emt 0:00:17]} Kxh7 {[%emt 0:01:39]} 30. Nf6+ {[%emt 0:00:05]} Kh6 {[%emt 0:00:23]} 31. Nxe8 {[%emt 0:00:07]} Nxc4 {[%emt 0:00:14]} 32. b3 {[%emt 0:00:24]} Ne5 {[%emt 0:00:53]} 33. Nc7 {[%emt 0:00:32]} a5 {[%emt 0:00:11]} 34. Ne6 {[%emt 0:01:45]} c4 {[%emt 0:00:29]} 35. bxc4 {[%emt 0:01:09]} Nxc4 {[%emt 0:00:09]} 36. Kf2 {[%emt 0:02:23]} Na3 {[%emt 0:02:38]} 37. Ke2 {[%emt 0:00:51]} Nb5 {[%emt 0:01:18]} 38. Kd3 {[%emt 0:00:24]} Kh5 {[%emt 0:00:28]} 39. Nf4+ {[%emt 0:03:36]} Kg4 {[%emt 0:00:22]} 40. Nxg6 {[%emt 0:00:00]} Kh3 {[%emt 0:00:00]} 41. Ne5 {[%emt 0:00:32]} Kxh2 {[%emt 0:00:50]} 42. g4 {[%emt 0:00:13]} Kg3 {[%emt 0:00:21]} 43. a4 {[%emt 0:07:22]} Nd6 {[%emt 0:02:46]} 44. Ke3 {[%emt 0:05:09]} Kh4 {[%emt 0:02:26]} 45. Kf4 {[%emt 0:01:01]} Nb7 {[%emt 0:01:14]} 46. Nf3+ {[%emt 0:00:27]} Kh3 {[%emt 0:00:17]} 47. g5 {[%emt 0:00:11]} Nc5 {[%emt 0:00:44]} 48. g6 {[%emt 0:01:05]} Ne6+ {[%emt 0:00:48]} 49. Kf5 {[%emt 0:02:26]} Ng7+ {[%emt 0:00:13]} 50. Kf6 {[%emt 0:02:02]} Nh5+ {[%emt 0:00:17]} 51. Kg5 {[%emt 0:00:15]} Ng7 {[%emt 0:00:16]} 52. Nd4 {[%emt 0:00:21]} Kg3 {[%emt 0:00:43]} 53. Nf5+ {[%emt 0:00:45]} 1-0

[Event "Biel Main Tournament 2019"]
[Site "Biel"]
[Date "2019.07.26"]
[Round "5.8"]
[White "Fondain, Georges"]
[Black "Meinecke, Florian"]
[Result "0-1"]
[ECO "B13"]
[WhiteElo "1839"]
[BlackElo "1968"]
[Annotator "NA"]
[PlyCount "80"]
[EventDate "2019.07.20"]
[EventType "swiss"]
[EventCountry "SUI"]
[SourceTitle "playchess.com"]
[Source "ChessBase"]
[SourceQuality "1"]
[TimeControl "40/5400+30:1800+30"]

1. e4 {[%emt 0:00:00]} c6 {[%emt 0:00:00]} 2. Nc3 {[%emt 0:01:21]} d5 {[%emt 0:00:09]} 3. Nf3 {[%emt 0:00:06]} Bg4 {[%emt 0:01:42]} 4. exd5 {[%emt 0:03:09]} cxd5 {[%emt 0:00:52]} 5. d4 {[%emt 0:00:51]} Nc6 {[%emt 0:03:59]} 6. Bb5 {[%emt 0:00:12]} a6 {[%emt 0:02:54]} 7. Ba4 {[%emt 0:01:01]} Nf6 {[%emt 0:03:28]} 8. Bg5 {[%emt 0:10:13]} e6 {[%emt 0:05:21]} 9. Bxc6+ {[%emt 0:02:04]} bxc6 {[%emt 0:00:17]} 10. Qd3 {[%emt 0:00:10]} Bf5 {[%emt 0:07:40]} 11. Qd2 {[%emt 0:07:34]} Qb6 {[%emt 0:06:50]} 12. Bxf6 {[%emt 0:05:13]} gxf6 {[%emt 0:01:55]} 13. Na4 {[%emt 0:02:54]} Qb4 {[%emt 0:13:49]} 14. Qxb4 {[%emt 0:06:22]} Bxb4+ {[%emt 0:00:21]} 15. c3 {[%emt 0:00:09]} Bd6 {[%emt 0:01:56]} 16. Nd2 {[%emt 0:02:01]} Rg8 {[%emt 0:05:05]} 17. g3 {[%emt 0:00:30]} Ke7 {[%emt 0:00:23]} 18. b3 {[%emt 0:02:52]} Rab8 {[%emt 0:06:55]} 19. Nb2 {[%emt 0:02:05]} c5 {[%emt 0:03:43]} 20. dxc5 {[%emt 0:03:38]} Bxc5 {[%emt 0:00:25]} 21. Ke2 {[%emt 0:00:26]} h5 {[%emt 0:02:44]} 22. Nd1 {[%emt 0:01:59]} e5 {[%emt 0:03:57]} 23. Ne3 {[%emt 0:00:21]} Be6 {[%emt 0:01:04]} 24. Rad1 {[%emt 0:03:35]} Rgc8 {[%emt 0:02:17]} 25. Nb1 {[%emt 0:04:06]} Rd8 {[%emt 0:04:31]} 26. Rc1 {[%emt 0:04:28]} Rbc8 {[%emt 0:02:41]} 27. Ng2 {[%emt 0:07:56]} Bf5 {[%emt 0:02:29]} 28. b4 {[%emt 0:04:38]} Bb6 {[%emt 0:01:13]} 29. Rcd1 {[%emt 0:05:27]} Bxb1 {[%emt 0:01:46]} 30. Rxb1 {[%emt 0:00:06]} Rxc3 {[%emt 0:00:29]} 31. Rb2 {[%emt 0:01:56]} Rdc8 {[%emt 0:01:33]} 32. Rd1 {[%emt 0:00:14]} Ke6 {[%emt 0:01:33]} 33. Ne1 {[%emt 0:03:10]} e4 {[%emt 0:02:10]} 34. Ng2 {[%emt 0:02:09]} d4 {[%emt 0:02:08]} 35. Nf4+ {[%emt 0:00:06]} Ke5 {[%emt 0:00:21]} 36. Ng2 {[%emt 0:09:43]} d3+ {[%emt 0:01:22]} 37. Kf1 {[%emt 0:02:50]} Rc2 {[%emt 0:00:21]} 38. Rd2 {[%emt 0:00:46]} Rxb2 {[%emt 0:00:21]} 39. Rxb2 {[%emt 0:00:07]} Rc2 {[%emt 0:00:11]} 40. Ne3 {[%emt 0:00:00]} Bxe3 {[%emt 0:00:00]} 0-1

[Event "Biel Main Tournament 2019"]
[Site "Biel"]
[Date "2019.07.28"]
[Round "6.2"]
[White "Meyer, Prosper"]
[Black "Prieb, Robert"]
[Result "0-1"]
[ECO "D01"]
[WhiteElo "1916"]
[BlackElo "1824"]
[Annotator "NA"]
[PlyCount "86"]
[EventDate "2019.07.20"]
[EventType "swiss"]
[EventCountry "SUI"]
[SourceTitle "playchess.com"]
[Source "ChessBase"]
[SourceQuality "1"]
[TimeControl "40/5400+30:1800+30"]

1. d4 {[%emt 0:00:00]} Nf6 {[%emt 0:00:00]} 2. Nc3 {[%emt 0:00:00]} d5 {[%emt 0:00:00]} 3. Bg5 {[%emt 0:00:02]} Nbd7 {[%emt 0:00:43]} 4. f3 {[%emt 0:00:25]} c6 {[%emt 0:00:46]} 5. e4 {[%emt 0:01:36]} dxe4 {[%emt 0:00:50]} 6. fxe4 {[%emt 0:01:30]} e5 {[%emt 0:01:25]} 7. Nf3 {[%emt 0:06:05]} exd4 {[%emt 0:17:14]} 8. Bd2 {[%emt 0:09:49]} Qa5 {[%emt 0:00:30]} 9. Nxd4 {[%emt 0:00:01]} Qb6 {[%emt 0:02:58]} 10. Nf5 {[%emt 0:11:40]} g6 {[%emt 0:09:25]} 11. Ng3 {[%emt 0:01:53]} Qxb2 {[%emt 0:10:00]} 12. Rb1 {[%emt 0:09:29]} Qa3 {[%emt 0:00:34]} 13. Qf3 {[%emt 0:01:49]} Bg7 {[%emt 0:08:11]} 14. Rb3 {[%emt 0:04:20]} Qe7 {[%emt 0:03:07]} 15. Bd3 {[%emt 0:02:20]} O-O {[%emt 0:04:47]} 16. O-O {[%emt 0:03:36]} Ne5 {[%emt 0:03:41]} 17. Qd1 {[%emt 0:01:41]} Nfg4 {[%emt 0:08:43]} 18. Qe1 {[%emt 0:02:36]} Be6 {[%emt 0:01:44]} 19. Rb1 {[%emt 0:01:16]} Nxd3 {[%emt 0:04:21]} 20. cxd3 {[%emt 0:00:17]} Bd4+ {[%emt 0:00:45]} 21. Kh1 {[%emt 0:00:13]} Qc5 {[%emt 0:00:58]} 22. h3 {[%emt 0:00:22]} Nf2+ {[%emt 0:01:24]} 23. Kh2 {[%emt 0:00:11]} Nxd3 {[%emt 0:00:20]} 24. Na4 {[%emt 0:01:08]} Nxe1 {[%emt 0:03:31]} 25. Nxc5 {[%emt 0:00:13]} Bxc5 {[%emt 0:00:03]} 26. Rfxe1 {[%emt 0:00:23]} b6 {[%emt 0:00:53]} 27. Bh6 {[%emt 0:01:00]} Rfd8 {[%emt 0:01:07]} 28. a4 {[%emt 0:00:21]} Rd3 {[%emt 0:03:21]} 29. Ne2 {[%emt 0:02:16]} Rad8 {[%emt 0:03:04]} 30. Nf4 {[%emt 0:00:37]} R3d4 {[%emt 0:02:46]} 31. Bg5 {[%emt 0:02:12]} Re8 {[%emt 0:01:45]} 32. a5 {[%emt 0:00:26]} b5 {[%emt 0:01:02]} 33. Bf6 {[%emt 0:02:47]} Rd2 {[%emt 0:01:55]} 34. Rbc1 {[%emt 0:00:50]} Bc4 {[%emt 0:00:47]} 35. Rcd1 {[%emt 0:01:33]} Rf2 {[%emt 0:02:23]} 36. Kg3 {[%emt 0:00:32]} Ra2 {[%emt 0:00:46]} 37. Kg4 {[%emt 0:00:42]} h5+ {[%emt 0:01:39]} 38. Kg5 {[%emt 0:00:15]} Be7 {[%emt 0:00:26]} 39. Bxe7 {[%emt 0:07:02]} Rxe7 {[%emt 0:00:02]} 40. Kf6 {[%emt 0:00:00]} Re8 {[%emt 0:00:00]} 41. Rd7 {[%emt 0:00:34]} Rxa5 {[%emt 0:05:27]} 42. Red1 {[%emt 0:00:12]} Rxe4 {[%emt 0:02:24]} 43. Nxg6 {[%emt 0:00:27]} Re6+ {[%emt 0:00:17]} 0-1